[Event "Titled Tuesday Blitz March 14 Late 2023"]
[White "Lenderman, Aleksandr"]
[Black "Filgueira, Hernan"]
[WhiteFideId "2021285"]
[BlackFideId "101770"]
[WhiteElo "2607"]
[BlackElo "2363"]
[Result "1-0"]
[Round "02"]
[TimeControl "180+1"]
[Date "2023.03.14"]
[WhiteClock "0:00:13"]
[BlackClock "0:00:11"]

1. Nf3 {[%clk 0:03:00]}  d5 {[%clk 0:02:59]} 2. e3 {[%clk 0:03:00]}  Nf6 {[%clk 0:02:58]} 3. c4 {[%clk 0:03:01]}  e6 {[%clk 0:02:57]} 4. Nc3 {[%clk 0:03:01]}  c6 {[%clk 0:02:56]} 5. b3 {[%clk 0:02:59]}  a6 {[%clk 0:02:56]} 6. Bb2 {[%clk 0:02:59]}  Nbd7 {[%clk 0:02:51]} 7. d4 {[%clk 0:02:58]}  Bb4 {[%clk 0:02:40]} 8. a3 {[%clk 0:02:55]}  Bd6 {[%clk 0:02:40]} 9. Bd3 {[%clk 0:02:54]}  e5 {[%clk 0:02:36]} 10. cxd5 {[%clk 0:02:53]}  cxd5 {[%clk 0:02:35]} 11. dxe5 {[%clk 0:02:53]}  Nxe5 {[%clk 0:02:35]} 12. Be2 {[%clk 0:02:53]}  Nc6 {[%clk 0:02:27]} 13. O-O {[%clk 0:02:52]}  O-O {[%clk 0:02:27]} 14. b4 {[%clk 0:02:52]}  Re8 {[%clk 0:02:16]} 15. Rc1 {[%clk 0:02:50]}  Bc7 {[%clk 0:02:05]} 16. Na4 {[%clk 0:02:46]}  Ne4 {[%clk 0:01:53]} 17. Nc5 {[%clk 0:02:44]}  Nxc5 {[%clk 0:01:49]} 18. Rxc5 {[%clk 0:02:43]}  Be6 {[%clk 0:01:50]} 19. Nd4 {[%clk 0:02:35]}  Qd7 {[%clk 0:01:31]} 20. Nxc6 {[%clk 0:02:21]}  bxc6 {[%clk 0:01:31]} 21. Qd4 {[%clk 0:02:21]}  f6 {[%clk 0:01:29]} 22. Qc3 {[%clk 0:02:21]}  Rec8 {[%clk 0:01:24]} 23. Rc1 {[%clk 0:02:20]}  Be5 {[%clk 0:01:18]} 24. Qd2 {[%clk 0:02:20]}  Bxb2 {[%clk 0:01:13]} 25. Qxb2 {[%clk 0:02:19]}  Qd6 {[%clk 0:01:00]} 26. Qd4 {[%clk 0:02:17]}  Rc7 {[%clk 0:00:51]} 27. g3 {[%clk 0:02:08]}  Bf7 {[%clk 0:00:46]} 28. Bd3 {[%clk 0:02:03]}  Be8 {[%clk 0:00:41]} 29. Rxd5 {[%clk 0:01:40]}  cxd5 {[%clk 0:00:31]} 30. Rxc7 {[%clk 0:01:40]}  Qxc7 {[%clk 0:00:32]} 31. Qxd5+ {[%clk 0:01:40]}  Kf8 {[%clk 0:00:32]} 32. Qxa8 {[%clk 0:01:40]}  Qc1+ {[%clk 0:00:32]} 33. Kg2 {[%clk 0:01:23]}  Qxa3 {[%clk 0:00:32]} 34. Bxh7 {[%clk 0:01:07]}  Qxb4 {[%clk 0:00:22]} 35. Bg6 {[%clk 0:01:03]}  Qb5 {[%clk 0:00:17]} 36. Bxe8 {[%clk 0:01:01]}  Qxe8 {[%clk 0:00:17]} 37. Qxe8+ {[%clk 0:00:49]}  Kxe8 {[%clk 0:00:16]} 38. Kf3 {[%clk 0:00:50]}  Kd7 {[%clk 0:00:15]} 39. Ke4 {[%clk 0:00:50]}  Kc6 {[%clk 0:00:15]} 40. Kd4 {[%clk 0:00:50]}  Kb5 {[%clk 0:00:16]} 41. Kc3 {[%clk 0:00:50]}  Kc5 {[%clk 0:00:14]} 42. g4 {[%clk 0:00:42]}  g5 {[%clk 0:00:13]} 43. f3 {[%clk 0:00:26]}  a5 {[%clk 0:00:10]} 44. Kb3 {[%clk 0:00:27]}  Kd5 {[%clk 0:00:08]} 45. h3 {[%clk 0:00:22]}  a4+ {[%clk 0:00:07]} 46. Kb4 {[%clk 0:00:17]}  a3 {[%clk 0:00:07]} 47. Kxa3 {[%clk 0:00:17]}  Kc4 {[%clk 0:00:07]} 48. e4 {[%clk 0:00:07]}  Kd4 {[%clk 0:00:07]} 49. Kb4 {[%clk 0:00:08]}  Ke3 {[%clk 0:00:07]} 50. Kc4 {[%clk 0:00:08]}  Kxf3 {[%clk 0:00:08]} 51. Kd5 {[%clk 0:00:09]}  Kg3 {[%clk 0:00:07]} 52. Ke6 {[%clk 0:00:09]}  Kxh3 {[%clk 0:00:08]} 53. Kxf6 {[%clk 0:00:09]}  Kxg4 {[%clk 0:00:09]} 54. e5 {[%clk 0:00:09]}  Kf4 {[%clk 0:00:09]} 55. e6 {[%clk 0:00:10]}  g4 {[%clk 0:00:10]} 56. e7 {[%clk 0:00:10]}  g3 {[%clk 0:00:11]} 57. e8=Q {[%clk 0:00:11]}  g2 {[%clk 0:00:11]} 58. Qe1 {[%clk 0:00:11]}  Kf3 {[%clk 0:00:11]} 59. Qg1 {[%clk 0:00:12]}  Kg3 {[%clk 0:00:11]} 60. Kg5 {[%clk 0:00:12]}  Kf3 {[%clk 0:00:11]} 61. Kh4 {[%clk 0:00:13]} 1-0


[Site "https://www.chess.com"]

[Event "Titled Tuesday Blitz March 14 Late 2023"]
[White "Liu, Yi"]
[Black "Pakleza, Zbigniew"]
[WhiteFideId "3210588"]
[BlackFideId "1119290"]
[WhiteElo "2264"]
[BlackElo "2410"]
[Result "0-1"]
[Round "02"]
[TimeControl "180+1"]
[Date "2023.03.14"]
[WhiteClock "0:00:50"]
[BlackClock "0:01:09"]

1. e4 {[%clk 0:03:00]}  d6 {[%clk 0:02:58]} 2. d4 {[%clk 0:02:59]}  Nf6 {[%clk 0:02:57]} 3. Nc3 {[%clk 0:02:59]}  c6 {[%clk 0:02:57]} 4. Nf3 {[%clk 0:02:51]}  Bg4 {[%clk 0:02:56]} 5. Be3 {[%clk 0:02:46]}  e6 {[%clk 0:02:55]} 6. Be2 {[%clk 0:02:46]}  d5 {[%clk 0:02:53]} 7. e5 {[%clk 0:02:41]}  Nfd7 {[%clk 0:02:53]} 8. O-O {[%clk 0:02:40]}  c5 {[%clk 0:02:53]} 9. h3 {[%clk 0:02:33]}  Bxf3 {[%clk 0:02:51]} 10. Bxf3 {[%clk 0:02:33]}  Nc6 {[%clk 0:02:52]} 11. Re1 {[%clk 0:02:24]}  cxd4 {[%clk 0:02:44]} 12. Bxd4 {[%clk 0:02:24]}  Nxd4 {[%clk 0:02:45]} 13. Qxd4 {[%clk 0:02:24]}  Bc5 {[%clk 0:02:46]} 14. Qa4 {[%clk 0:02:08]}  O-O {[%clk 0:02:41]} 15. Rad1 {[%clk 0:02:02]}  Nb6 {[%clk 0:02:29]} 16. Qb5 {[%clk 0:01:54]}  Rc8 {[%clk 0:02:26]} 17. Na4 {[%clk 0:01:52]}  Bxf2+ {[%clk 0:01:58]} 18. Kxf2 {[%clk 0:01:46]}  Qh4+ {[%clk 0:01:57]} 19. Kg1 {[%clk 0:01:43]}  Qxa4 {[%clk 0:01:56]} 20. Qb3 {[%clk 0:01:39]}  Rxc2 {[%clk 0:01:44]} 21. Qxa4 {[%clk 0:01:28]}  Nxa4 {[%clk 0:01:44]} 22. b3 {[%clk 0:01:29]}  Nb6 {[%clk 0:01:29]} 23. a4 {[%clk 0:01:24]}  Rfc8 {[%clk 0:01:28]} 24. Rb1 {[%clk 0:01:21]}  g6 {[%clk 0:01:24]} 25. Be2 {[%clk 0:01:15]}  Kg7 {[%clk 0:01:21]} 26. Bd3 {[%clk 0:01:15]}  Rd2 {[%clk 0:01:20]} 27. Bb5 {[%clk 0:01:13]}  Rcc2 {[%clk 0:01:18]} 28. Bf1 {[%clk 0:01:08]}  h5 {[%clk 0:01:13]} 29. Kh1 {[%clk 0:01:07]}  Nd7 {[%clk 0:01:10]} 30. Kg1 {[%clk 0:01:03]}  Nc5 {[%clk 0:01:10]} 31. Kh1 {[%clk 0:00:55]}  Ne4 {[%clk 0:01:09]} 32. Red1 {[%clk 0:00:50]}  Rxd1 {[%clk 0:01:08]} 33. Rxd1 {[%clk 0:00:50]}  Nf2+ {[%clk 0:01:09]} 0-1


[Site "https://www.chess.com"]

[Event "Titled Tuesday Blitz March 14 Late 2023"]
[White "Lorenzo De La Riva, Lazaro"]
[Black "Meunier-Pion, Jean"]
[WhiteFideId "2268809"]
[BlackFideId "20685327"]
[WhiteElo "2294"]
[BlackElo "2124"]
[Result "1-0"]
[Round "02"]
[TimeControl "180+1"]
[Date "2023.03.14"]
[WhiteClock "0:01:04"]
[BlackClock "0:00:01"]

1. Nf3 {[%clk 0:02:58]}  d5 {[%clk 0:02:59]} 2. c4 {[%clk 0:02:55]}  d4 {[%clk 0:02:58]} 3. b4 {[%clk 0:02:53]}  c5 {[%clk 0:02:47]} 4. g3 {[%clk 0:02:42]}  cxb4 {[%clk 0:02:44]} 5. Bg2 {[%clk 0:02:43]}  Nc6 {[%clk 0:02:43]} 6. O-O {[%clk 0:02:43]}  e5 {[%clk 0:02:32]} 7. e3 {[%clk 0:02:38]}  dxe3 {[%clk 0:02:30]} 8. fxe3 {[%clk 0:02:38]}  Nf6 {[%clk 0:02:26]} 9. Bb2 {[%clk 0:02:35]}  Qc7 {[%clk 0:01:53]} 10. a3 {[%clk 0:02:32]}  bxa3 {[%clk 0:01:46]} 11. Nxa3 {[%clk 0:02:32]}  Be7 {[%clk 0:01:46]} 12. Nb5 {[%clk 0:02:30]}  Qb8 {[%clk 0:01:46]} 13. d4 {[%clk 0:02:28]}  exd4 {[%clk 0:01:42]} 14. exd4 {[%clk 0:02:28]}  a6 {[%clk 0:01:36]} 15. d5 {[%clk 0:02:08]}  axb5 {[%clk 0:01:24]} 16. dxc6 {[%clk 0:02:07]}  Rxa1 {[%clk 0:01:19]} 17. Qxa1 {[%clk 0:02:08]}  bxc4 {[%clk 0:01:06]} 18. Re1 {[%clk 0:02:06]}  bxc6 {[%clk 0:01:01]} 19. Bxf6 {[%clk 0:02:00]}  gxf6 {[%clk 0:00:58]} 20. Qxf6 {[%clk 0:02:00]}  Qa7+ {[%clk 0:00:58]} 21. Kh1 {[%clk 0:01:58]}  Rg8 {[%clk 0:00:52]} 22. Qxc6+ {[%clk 0:01:53]}  Kf8 {[%clk 0:00:49]} 23. Qxc8+ {[%clk 0:01:52]}  Kg7 {[%clk 0:00:49]} 24. Qxc4 {[%clk 0:01:52]}  Bf6 {[%clk 0:00:45]} 25. Qg4+ {[%clk 0:01:38]}  Kh8 {[%clk 0:00:45]} 26. Qf5 {[%clk 0:01:35]}  Rg6 {[%clk 0:00:41]} 27. Ne5 {[%clk 0:01:30]}  Bxe5 {[%clk 0:00:28]} 28. Qxe5+ {[%clk 0:01:31]}  Kg8 {[%clk 0:00:28]} 29. Rf1 {[%clk 0:01:23]}  Re6 {[%clk 0:00:20]} 30. Qg5+ {[%clk 0:01:20]}  Rg6 {[%clk 0:00:20]} 31. Qf5 {[%clk 0:01:17]}  h6 {[%clk 0:00:14]} 32. Bd5 {[%clk 0:01:15]}  Kh7 {[%clk 0:00:06]} 33. Bxf7 {[%clk 0:01:14]}  Qb7+ {[%clk 0:00:04]} 34. Kg1 {[%clk 0:01:07]}  Qb6+ {[%clk 0:00:04]} 35. Rf2 {[%clk 0:01:07]}  Kh8 {[%clk 0:00:01]} 36. Bxg6 {[%clk 0:01:05]}  h5 {[%clk 0:00:01]} 37. Qxh5+ {[%clk 0:01:03]}  Kg7 {[%clk 0:00:01]} 38. Qh7# {[%clk 0:01:04]} 1-0


[Site "https://www.chess.com"]

[Event "Titled Tuesday Blitz March 14 Late 2023"]
[White "Melikhov, Evgeny V."]
[Black "Volkov, Sergey"]
[WhiteFideId "4122046"]
[BlackFideId "4122763"]
[WhiteElo "2158"]
[BlackElo "2401"]
[Result "1-0"]
[Round "02"]
[TimeControl "180+1"]
[Date "2023.03.14"]
[WhiteClock "0:00:14"]
[BlackClock "0:01:02"]

1. d4 {[%clk 0:03:00]}  d5 {[%clk 0:02:59]} 2. c4 {[%clk 0:03:00]}  c6 {[%clk 0:02:59]} 3. Nc3 {[%clk 0:03:00]}  dxc4 {[%clk 0:02:59]} 4. e4 {[%clk 0:03:00]}  b5 {[%clk 0:02:58]} 5. a4 {[%clk 0:02:59]}  b4 {[%clk 0:02:58]} 6. Na2 {[%clk 0:02:59]}  e5 {[%clk 0:02:57]} 7. Nf3 {[%clk 0:02:52]}  b3 {[%clk 0:02:54]} 8. Nc3 {[%clk 0:02:47]}  exd4 {[%clk 0:02:53]} 9. Qxd4 {[%clk 0:02:46]}  Qxd4 {[%clk 0:02:49]} 10. Nxd4 {[%clk 0:02:45]}  Ba6 {[%clk 0:02:49]} 11. Bf4 {[%clk 0:02:34]}  Bc5 {[%clk 0:02:40]} 12. O-O-O {[%clk 0:02:22]}  Ne7 {[%clk 0:02:39]} 13. h4 {[%clk 0:01:53]}  O-O {[%clk 0:02:37]} 14. Be2 {[%clk 0:01:51]}  Re8 {[%clk 0:02:32]} 15. f3 {[%clk 0:01:49]}  h5 {[%clk 0:02:22]} 16. g4 {[%clk 0:01:43]}  hxg4 {[%clk 0:02:19]} 17. fxg4 {[%clk 0:01:43]}  Ng6 {[%clk 0:02:18]} 18. Bg3 {[%clk 0:01:41]}  Ne5 {[%clk 0:02:15]} 19. Bxe5 {[%clk 0:01:35]}  Rxe5 {[%clk 0:02:14]} 20. h5 {[%clk 0:01:22]}  Bb4 {[%clk 0:02:06]} 21. h6 {[%clk 0:01:07]}  gxh6 {[%clk 0:02:00]} 22. Rxh6 {[%clk 0:01:05]}  Bxc3 {[%clk 0:02:00]} 23. bxc3 {[%clk 0:01:04]}  Rxe4 {[%clk 0:02:00]} 24. Rdh1 {[%clk 0:00:59]}  Rxd4 {[%clk 0:01:42]} 25. cxd4 {[%clk 0:00:57]}  c3 {[%clk 0:01:42]} 26. Bxa6 {[%clk 0:00:49]}  Nxa6 {[%clk 0:01:42]} 27. Rh8+ {[%clk 0:00:49]}  Kg7 {[%clk 0:01:40]} 28. Rxa8 {[%clk 0:00:48]}  Nb4 {[%clk 0:01:40]} 29. Rb8 {[%clk 0:00:38]}  Nd3+ {[%clk 0:01:33]} 30. Kb1 {[%clk 0:00:37]}  c2+ {[%clk 0:01:28]} 31. Ka1 {[%clk 0:00:35]}  c1=Q+ {[%clk 0:01:26]} 32. Rxc1 {[%clk 0:00:34]}  Nxc1 {[%clk 0:01:27]} 33. Kb2 {[%clk 0:00:32]}  Ne2 {[%clk 0:01:26]} 34. Kxb3 {[%clk 0:00:27]}  Nxd4+ {[%clk 0:01:26]} 35. Kc4 {[%clk 0:00:27]}  Nf3 {[%clk 0:01:24]} 36. a5 {[%clk 0:00:24]}  Ne5+ {[%clk 0:01:23]} 37. Kd4 {[%clk 0:00:20]}  Nxg4 {[%clk 0:01:22]} 38. a6 {[%clk 0:00:19]}  Nf6 {[%clk 0:01:18]} 39. Rb7 {[%clk 0:00:18]}  Nd5 {[%clk 0:01:18]} 40. Rxa7 {[%clk 0:00:17]}  Nb4 {[%clk 0:01:18]} 41. Kc4 {[%clk 0:00:15]}  Nxa6 {[%clk 0:01:16]} 42. Rxa6 {[%clk 0:00:15]}  Kf6 {[%clk 0:01:16]} 43. Rxc6+ {[%clk 0:00:15]}  Ke5 {[%clk 0:01:17]} 44. Kd3 {[%clk 0:00:15]}  Kf4 {[%clk 0:01:17]} 45. Ke2 {[%clk 0:00:15]}  f5 {[%clk 0:01:17]} 46. Kf2 {[%clk 0:00:15]}  Kg4 {[%clk 0:01:17]} 47. Rc4+ {[%clk 0:00:15]}  f4 {[%clk 0:01:11]} 48. Ra4 {[%clk 0:00:15]}  Kf5 {[%clk 0:01:03]} 49. Kf3 {[%clk 0:00:15]}  Ke6 {[%clk 0:01:02]} 50. Rxf4 {[%clk 0:00:14]} 1-0


[Site "https://www.chess.com"]

[Event "Titled Tuesday Blitz March 14 Late 2023"]
[White "Melikyan, Gnel"]
[Black "Livaic, Leon"]
[WhiteFideId "54109990"]
[BlackFideId "14531534"]
[WhiteElo "2138"]
[BlackElo "2509"]
[Result "0-1"]
[Round "02"]
[TimeControl "180+1"]
[Date "2023.03.14"]
[WhiteClock "0:00:02"]
[BlackClock "0:00:15"]

1. e4 {[%clk 0:02:59]}  e6 {[%clk 0:02:58]} 2. d4 {[%clk 0:02:52]}  d5 {[%clk 0:02:59]} 3. e5 {[%clk 0:02:53]}  c5 {[%clk 0:02:58]} 4. c3 {[%clk 0:02:54]}  Nc6 {[%clk 0:02:59]} 5. Nf3 {[%clk 0:02:53]}  Bd7 {[%clk 0:02:59]} 6. a3 {[%clk 0:02:53]}  Nge7 {[%clk 0:02:57]} 7. b4 {[%clk 0:02:53]}  cxd4 {[%clk 0:02:58]} 8. cxd4 {[%clk 0:02:53]}  Nf5 {[%clk 0:02:58]} 9. Bb2 {[%clk 0:02:53]}  b5 {[%clk 0:02:59]} 10. Nc3 {[%clk 0:02:45]}  a5 {[%clk 0:02:58]} 11. Nxb5 {[%clk 0:02:41]}  axb4 {[%clk 0:02:58]} 12. a4 {[%clk 0:02:42]}  Na5 {[%clk 0:02:55]} 13. Bd3 {[%clk 0:02:36]}  Nc4 {[%clk 0:02:51]} 14. Qb1 {[%clk 0:02:15]}  Be7 {[%clk 0:02:41]} 15. O-O {[%clk 0:02:12]}  O-O {[%clk 0:02:27]} 16. Rc1 {[%clk 0:02:02]}  Qb6 {[%clk 0:02:20]} 17. Bxc4 {[%clk 0:01:28]}  dxc4 {[%clk 0:02:20]} 18. Rxc4 {[%clk 0:01:28]}  Rxa4 {[%clk 0:02:04]} 19. Rxa4 {[%clk 0:01:05]}  Qxb5 {[%clk 0:02:03]} 20. Ra7 {[%clk 0:01:05]}  Qxc4 {[%clk 0:02:02]} 21. Rxd7 {[%clk 0:01:05]}  Ra8 {[%clk 0:01:44]} 22. d5 {[%clk 0:01:02]}  Qb5 {[%clk 0:01:30]} 23. dxe6 {[%clk 0:01:01]}  fxe6 {[%clk 0:01:31]} 24. Rd1 {[%clk 0:00:59]}  b3 {[%clk 0:01:25]} 25. g4 {[%clk 0:00:58]}  Nh6 {[%clk 0:01:22]} 26. h3 {[%clk 0:00:49]}  Qe2 {[%clk 0:01:22]} 27. Nd4 {[%clk 0:00:48]}  Qc4 {[%clk 0:01:16]} 28. Qd3 {[%clk 0:00:46]}  Qd5 {[%clk 0:01:11]} 29. Qxb3 {[%clk 0:00:38]}  Qxb3 {[%clk 0:01:11]} 30. Nxb3 {[%clk 0:00:39]}  Rb8 {[%clk 0:01:11]} 31. Rd3 {[%clk 0:00:39]}  Nf7 {[%clk 0:01:12]} 32. f4 {[%clk 0:00:28]}  Rb4 {[%clk 0:01:12]} 33. Bd4 {[%clk 0:00:28]}  g6 {[%clk 0:01:04]} 34. Kg2 {[%clk 0:00:25]}  h5 {[%clk 0:01:05]} 35. Nd2 {[%clk 0:00:23]}  Ra4 {[%clk 0:00:55]} 36. Kf3 {[%clk 0:00:20]}  Ra2 {[%clk 0:00:52]} 37. Ne4 {[%clk 0:00:19]}  Rh2 {[%clk 0:00:50]} 38. Nf2 {[%clk 0:00:18]}  Bh4 {[%clk 0:00:49]} 39. g5 {[%clk 0:00:17]}  Bxf2 {[%clk 0:00:47]} 40. Bxf2 {[%clk 0:00:17]}  Rxh3+ {[%clk 0:00:48]} 41. Ke4 {[%clk 0:00:15]}  Rxd3 {[%clk 0:00:47]} 42. Kxd3 {[%clk 0:00:16]}  Nd8 {[%clk 0:00:46]} 43. Kc4 {[%clk 0:00:16]}  Nc6 {[%clk 0:00:46]} 44. Kb5 {[%clk 0:00:17]}  Ne7 {[%clk 0:00:46]} 45. Kc5 {[%clk 0:00:12]}  Kf7 {[%clk 0:00:44]} 46. Kd4 {[%clk 0:00:12]}  Nf5+ {[%clk 0:00:44]} 47. Ke4 {[%clk 0:00:12]}  Ke7 {[%clk 0:00:44]} 48. Bc5+ {[%clk 0:00:12]}  Kd7 {[%clk 0:00:45]} 49. Bf2 {[%clk 0:00:12]}  Kc6 {[%clk 0:00:45]} 50. Kf3 {[%clk 0:00:12]}  Kb5 {[%clk 0:00:46]} 51. Ba7 {[%clk 0:00:12]}  Kc4 {[%clk 0:00:46]} 52. Bg1 {[%clk 0:00:12]}  Kd3 {[%clk 0:00:46]} 53. Bf2 {[%clk 0:00:12]}  h4 {[%clk 0:00:37]} 54. Bg1 {[%clk 0:00:12]}  h3 {[%clk 0:00:37]} 55. Ba7 {[%clk 0:00:11]}  h2 {[%clk 0:00:33]} 56. Kg2 {[%clk 0:00:11]}  Ke4 {[%clk 0:00:34]} 57. Kxh2 {[%clk 0:00:12]}  Kxf4 {[%clk 0:00:35]} 58. Bb8 {[%clk 0:00:12]}  Kxg5 {[%clk 0:00:35]} 59. Kg2 {[%clk 0:00:12]}  Kf4 {[%clk 0:00:36]} 60. Kf2 {[%clk 0:00:13]}  g5 {[%clk 0:00:36]} 61. Bc7 {[%clk 0:00:12]}  g4 {[%clk 0:00:37]} 62. Bb8 {[%clk 0:00:12]}  g3+ {[%clk 0:00:37]} 63. Kg1 {[%clk 0:00:13]}  Kf3 {[%clk 0:00:37]} 64. Ba7 {[%clk 0:00:13]}  Nh4 {[%clk 0:00:33]} 65. Bb6 {[%clk 0:00:13]}  Ng6 {[%clk 0:00:33]} 66. Bd4 {[%clk 0:00:10]}  Nf4 {[%clk 0:00:32]} 67. Ba7 {[%clk 0:00:09]}  Ke4 {[%clk 0:00:24]} 68. Bb8 {[%clk 0:00:04]}  Nd3 {[%clk 0:00:19]} 69. Kg2 {[%clk 0:00:04]}  Kf4 {[%clk 0:00:20]} 70. Bc7 {[%clk 0:00:04]}  Kg4 {[%clk 0:00:16]} 71. Bb8 {[%clk 0:00:04]}  Nf4+ {[%clk 0:00:16]} 72. Kg1 {[%clk 0:00:04]}  Kh3 {[%clk 0:00:15]} 73. Ba7 {[%clk 0:00:04]}  Ng6 {[%clk 0:00:14]} 74. Bd4 {[%clk 0:00:04]}  Nh4 {[%clk 0:00:14]} 75. Kf1 {[%clk 0:00:02]}  Nf3 {[%clk 0:00:15]} 76. Bc3 {[%clk 0:00:02]}  g2+ {[%clk 0:00:15]} 0-1


[Site "https://www.chess.com"]

[Event "Titled Tuesday Blitz March 14 Late 2023"]
[White "Melkumyan, Hrant"]
[Black "Mendez Fortes, Eduardo Jesus"]
[WhiteFideId "13302485"]
[BlackFideId "3502376"]
[WhiteElo "2604"]
[BlackElo "2307"]
[Result "0-1"]
[Round "02"]
[TimeControl "180+1"]
[Date "2023.03.14"]
[WhiteClock "0:00:06"]
[BlackClock "0:00:07"]

1. d4 {[%clk 0:03:00]}  Nf6 {[%clk 0:03:00]} 2. c4 {[%clk 0:03:01]}  e6 {[%clk 0:03:00]} 3. Bf4 {[%clk 0:03:00]}  d5 {[%clk 0:02:58]} 4. e3 {[%clk 0:03:01]}  Bb4+ {[%clk 0:02:58]} 5. Nc3 {[%clk 0:03:01]}  O-O {[%clk 0:02:58]} 6. Rc1 {[%clk 0:03:00]}  Nbd7 {[%clk 0:02:51]} 7. Nf3 {[%clk 0:02:54]}  c5 {[%clk 0:02:51]} 8. dxc5 {[%clk 0:02:45]}  Nxc5 {[%clk 0:02:50]} 9. a3 {[%clk 0:02:42]}  Bxc3+ {[%clk 0:02:50]} 10. Rxc3 {[%clk 0:02:43]}  Nce4 {[%clk 0:02:48]} 11. Rc1 {[%clk 0:02:39]}  Qa5+ {[%clk 0:02:47]} 12. Nd2 {[%clk 0:02:29]}  dxc4 {[%clk 0:02:46]} 13. Rxc4 {[%clk 0:02:13]}  Rd8 {[%clk 0:02:36]} 14. Rd4 {[%clk 0:02:12]}  Rxd4 {[%clk 0:02:31]} 15. exd4 {[%clk 0:02:11]}  Nxd2 {[%clk 0:02:20]} 16. Qxd2 {[%clk 0:02:07]}  Qxd2+ {[%clk 0:02:19]} 17. Kxd2 {[%clk 0:02:08]}  Bd7 {[%clk 0:02:18]} 18. Bd3 {[%clk 0:02:02]}  Bc6 {[%clk 0:02:18]} 19. f3 {[%clk 0:02:02]}  Rd8 {[%clk 0:02:16]} 20. Be5 {[%clk 0:02:00]}  Nd5 {[%clk 0:02:15]} 21. Rc1 {[%clk 0:01:58]}  f6 {[%clk 0:02:14]} 22. Bg3 {[%clk 0:01:58]}  Kf7 {[%clk 0:02:14]} 23. b4 {[%clk 0:01:54]}  a6 {[%clk 0:02:12]} 24. Bxa6 {[%clk 0:01:41]}  e5 {[%clk 0:02:04]} 25. b5 {[%clk 0:01:22]}  bxa6 {[%clk 0:01:58]} 26. bxc6 {[%clk 0:01:18]}  Nc7 {[%clk 0:01:51]} 27. Rc4 {[%clk 0:01:11]}  Ke6 {[%clk 0:01:37]} 28. Ke3 {[%clk 0:01:04]}  Nd5+ {[%clk 0:01:31]} 29. Ke2 {[%clk 0:01:05]}  Rc8 {[%clk 0:01:13]} 30. dxe5 {[%clk 0:01:04]}  fxe5 {[%clk 0:01:14]} 31. Kf2 {[%clk 0:00:52]}  Ne7 {[%clk 0:01:09]} 32. c7 {[%clk 0:00:50]}  Kd6 {[%clk 0:01:03]} 33. Ra4 {[%clk 0:00:47]}  Nc6 {[%clk 0:01:01]} 34. Rxa6 {[%clk 0:00:46]}  Rxc7 {[%clk 0:01:01]} 35. h4 {[%clk 0:00:46]}  Rb7 {[%clk 0:00:52]} 36. Bxe5+ {[%clk 0:00:46]}  Kd5 {[%clk 0:00:52]} 37. Bc3 {[%clk 0:00:41]}  g6 {[%clk 0:00:51]} 38. Ra4 {[%clk 0:00:38]}  Rb3 {[%clk 0:00:51]} 39. Bf6 {[%clk 0:00:38]}  Ke6 {[%clk 0:00:50]} 40. Bh8 {[%clk 0:00:38]}  Rb8 {[%clk 0:00:49]} 41. Bg7 {[%clk 0:00:36]}  Rb7 {[%clk 0:00:47]} 42. Bh6 {[%clk 0:00:36]}  Ne5 {[%clk 0:00:47]} 43. Ra6+ {[%clk 0:00:35]}  Kd5 {[%clk 0:00:46]} 44. Ra5+ {[%clk 0:00:35]}  Ke6 {[%clk 0:00:46]} 45. Kg3 {[%clk 0:00:32]}  Nc4 {[%clk 0:00:38]} 46. Ra6+ {[%clk 0:00:31]}  Kf7 {[%clk 0:00:38]} 47. a4 {[%clk 0:00:31]}  Rd7 {[%clk 0:00:36]} 48. Bf4 {[%clk 0:00:30]}  Rd5 {[%clk 0:00:33]} 49. Ra7+ {[%clk 0:00:29]}  Kg8 {[%clk 0:00:33]} 50. Bh6 {[%clk 0:00:27]}  Nd6 {[%clk 0:00:29]} 51. Rg7+ {[%clk 0:00:26]}  Kh8 {[%clk 0:00:28]} 52. Kf4 {[%clk 0:00:07]}  Nf5 {[%clk 0:00:19]} 53. Ra7 {[%clk 0:00:07]}  Nxh6 {[%clk 0:00:18]} 54. g4 {[%clk 0:00:08]}  Kg8 {[%clk 0:00:17]} 55. a5 {[%clk 0:00:08]}  Rd4+ {[%clk 0:00:16]} 56. Ke5 {[%clk 0:00:08]}  Ra4 {[%clk 0:00:17]} 57. a6 {[%clk 0:00:07]}  Nf7+ {[%clk 0:00:17]} 58. Kf6 {[%clk 0:00:07]}  Rf4+ {[%clk 0:00:15]} 59. Ke6 {[%clk 0:00:08]}  Kg7 {[%clk 0:00:14]} 60. Rc7 {[%clk 0:00:06]}  Rf6+ {[%clk 0:00:13]} 61. Ke7 {[%clk 0:00:06]}  Rxa6 {[%clk 0:00:14]} 62. f4 {[%clk 0:00:02]}  Rf6 {[%clk 0:00:10]} 63. Rc4 {[%clk 0:00:02]}  h5 {[%clk 0:00:08]} 64. gxh5 {[%clk 0:00:01]}  gxh5 {[%clk 0:00:09]} 65. Rb4 {[%clk 0:00:02]}  Nh6 {[%clk 0:00:09]} 66. Ke8 {[%clk 0:00:01]}  Rf8+ {[%clk 0:00:08]} 67. Ke7 {[%clk 0:00:02]}  Nf5+ {[%clk 0:00:09]} 68. Ke6 {[%clk 0:00:02]}  Nxh4 {[%clk 0:00:08]} 69. Rb5 {[%clk 0:00:02]}  Rf6+ {[%clk 0:00:06]} 70. Ke7 {[%clk 0:00:02]}  Ng6+ {[%clk 0:00:06]} 71. Kd7 {[%clk 0:00:02]}  h4 {[%clk 0:00:06]} 72. f5 {[%clk 0:00:02]}  Nf8+ {[%clk 0:00:04]} 73. Ke7 {[%clk 0:00:02]}  Rf7+ {[%clk 0:00:04]} 74. Kd6 {[%clk 0:00:02]}  Kf6 {[%clk 0:00:04]} 75. Kd5 {[%clk 0:00:01]}  Kxf5 {[%clk 0:00:04]} 76. Kd4+ {[%clk 0:00:01]}  Kg4 {[%clk 0:00:04]} 77. Ke3 {[%clk 0:00:02]}  Rf3+ {[%clk 0:00:04]} 78. Ke2 {[%clk 0:00:02]}  Ng6 {[%clk 0:00:04]} 79. Rb8 {[%clk 0:00:02]}  Nf4+ {[%clk 0:00:04]} 80. Ke1 {[%clk 0:00:02]}  Rg3 {[%clk 0:00:05]} 81. Rg8+ {[%clk 0:00:02]}  Kf3 {[%clk 0:00:05]} 82. Rh8 {[%clk 0:00:02]}  h3 {[%clk 0:00:06]} 83. Kd2 {[%clk 0:00:02]}  Rg2+ {[%clk 0:00:06]} 84. Kc3 {[%clk 0:00:02]}  h2 {[%clk 0:00:06]} 85. Kd4 {[%clk 0:00:03]}  Kf2 {[%clk 0:00:06]} 86. Ke4 {[%clk 0:00:02]}  Kg1 {[%clk 0:00:06]} 87. Kf3 {[%clk 0:00:02]}  h1=Q {[%clk 0:00:04]} 88. Ra8 {[%clk 0:00:03]}  Qh3+ {[%clk 0:00:04]} 89. Kxf4 {[%clk 0:00:03]}  Rg4+ {[%clk 0:00:04]} 90. Ke5 {[%clk 0:00:04]}  Qh5+ {[%clk 0:00:05]} 91. Kf6 {[%clk 0:00:05]}  Rg6+ {[%clk 0:00:06]} 92. Ke7 {[%clk 0:00:05]}  Qh7+ {[%clk 0:00:07]} 93. Kf8 {[%clk 0:00:06]}  Rg8# {[%clk 0:00:07]} 0-1


[Site "https://www.chess.com"]